bitfinex-derivatives/quotes_BNBF0:USTF0_20250128
["timestamp","ask_amount","ask_price","bid_price","bid_amount"]
[1738062688748,1.10395001,677.06,675.76,0.29596306]
[1738062690049,1.10395001,677.01,675.76,0.29596306]
[1738062694052,1.54316311,677.19,675.76,1.39909879]
[1738062694253,0.27158995,677.18,675.76,1.39909879]
[1738062695151,1.54316311,677.19,675.76,1.39909879]
[1738062695446,0.27158842,677.18,675.76,1.39909879]
[1738062695847,0.27158842,677.18,675.76,0.29596306]
[1738062699758,0.27159139,677.17,675.76,0.29596306]
[1738062699959,0.27159139,677.18,675.76,0.29596306]
[1738062700152,1.54316311,677.19,675.76,0.29596306]
[1738062700355,0.27158911,677.18,675.76,0.29596306]
[1738062702254,1.54316311,677.19,675.76,0.29596306]
[1738062702460,0.27159561,677.18,675.76,0.29596306]
[1738062703653,1.54316311,677.19,675.76,0.29596306]
[1738062713370,0.27158689,677.18,675.76,0.29596306]
[1738062717675,0.27158689,677.18,675.84,1.10313573]
[1738062718173,1.54316311,677.19,675.84,1.10313573]
[1738062718174,0.27159649,677.17,675.84,1.10313573]
[1738062718367,0.27159649,677.18,675.84,1.10313573]
[1738062718568,0.27159649,677.17,675.84,1.10313573]
[1738062718771,0.27159649,677.18,675.84,1.10313573]
[1738062719575,0.27159649,677.18,675.85,0.29592365]
[1738062719774,0.27159238,677.17,675.85,0.29592365]
[1738062719970,0.27159238,677.16,675.85,0.29592365]
[1738062720174,0.27159238,677.15,675.85,0.29592365]
[1738062720477,0.27159238,677.14,675.85,0.29592365]
[1738062720776,1.54316311,677.19,675.85,0.29592365]
[1738062720777,0.27159238,677.13,675.85,0.29592365]
[1738062721075,0.27159238,677.12,675.85,0.29592365]
[1738062721269,0.27159238,677.18,675.85,0.29592365]
[1738062721575,0.27160033,677.17,675.85,0.29592365]
[1738062721774,0.27160033,677.16,675.85,0.29592365]
[1738062721971,0.27160033,677.15,675.85,0.29592365]
[1738062722171,0.27160033,677.14,675.85,0.29592365]
[1738062722371,0.27160033,677.13,675.85,0.29592365]
[1738062722570,0.27160033,677.18,675.85,0.29592365]
[1738062722775,0.56694714,677.17,675.85,0.29592365]
[1738062722973,0.5669515,677.16,675.85,0.29592365]
[1738062723277,0.56695586,677.15,675.85,0.29592365]
[1738062723577,0.56696022,677.14,675.85,0.29592365]
[1738062723777,0.56696458,677.13,675.85,0.29592365]
[1738062723975,0.56696895,677.12,675.91,1.10313573]
[1738062724174,0.27160033,677.11,675.91,1.10313573]
[1738062724376,0.29537734,677.1,675.91,1.10313573]
[1738062724578,0.27160033,677.09,675.91,1.10313573]
[1738062727473,0.27160033,677.09,675.85,0.29592365]
[1738062727474,1.37555034,677.09,675.85,0.29592365]
[1738062727679,0.27160033,677.08,675.85,0.29592365]
[1738062728182,1.10395001,677.09,675.85,0.29592365]
[1738062728480,0.2716509,677.08,675.85,0.29592365]
[1738062729582,1.10395001,677.09,675.85,0.29592365]
[1738062730084,0.27165163,677.08,675.85,0.29592365]
[1738062730283,0.29537734,677.1,675.85,0.29592365]
[1738062730484,0.27165121,677.09,675.85,0.29592365]
[1738062733392,1.54327147,677.08,675.85,0.29592365]
[1738062739395,0.27162366,677.07,675.85,0.29592365]
[1738062745296,0.27161791,677.06,675.85,0.29592365]
[1738062745499,0.27161791,677.07,675.85,0.29592365]
[1738062745701,0.27161791,677.06,675.85,0.29592365]
[1738062745900,0.27161791,677.07,675.85,0.29592365]
[1738062746099,0.27161791,677.06,675.85,0.29592365]
[1738062746301,0.27161791,677.05,675.85,0.29592365]
[1738062746500,1.54327147,677.08,675.85,0.29592365]
[1738062746501,0.27161791,677.04,675.85,0.29592365]
[1738062746699,0.27161791,677.03,675.85,0.29592365]
[1738062746899,0.27161791,677.07,675.85,0.29592365]
[1738062747094,0.27161791,677.06,675.85,0.29592365]
[1738062747296,0.27161791,677.07,675.85,0.29592365]
[1738062747500,0.27161791,677.06,675.85,0.29592365]
[1738062747697,0.27161791,677.07,675.85,0.29592365]
[1738062747902,0.27161791,677.06,675.85,0.29592365]
[1738062748096,0.27161791,677.07,675.85,0.29592365]
[1738062748295,1.54327147,677.08,675.85,0.29592365]
[1738062748296,0.27161791,677.06,675.85,0.29592365]
[1738062748601,0.27161791,677.05,675.85,0.29592365]
[1738062748799,0.27161791,677.04,675.85,0.29592365]
[1738062748995,0.27161791,677.03,675.85,0.29592365]
[1738062749201,0.27161791,677.02,675.85,0.29592365]
[1738062749501,0.27161791,677.01,675.85,0.29592365]
[1738062749702,0.27161791,677.07,675.85,0.29592365]
[1738062750002,1.54329428,677.01,675.85,0.29592365]
[1738062750197,0.27161791,677.0,675.85,0.29592365]
[1738062751500,0.29542533,676.99,675.85,0.29592365]
[1738062751696,0.27161791,676.98,675.85,0.29592365]
[1738062753798,0.2717073,676.97,675.85,0.29592365]
[1738062754605,1.10395001,676.91,675.85,0.29592365]
[1738062754804,0.2717073,676.9,675.85,0.29592365]
[1738062755406,1.10395001,676.91,675.85,0.29592365]
[1738062755605,0.27170575,676.9,675.85,0.29592365]
[1738062758006,0.27170575,676.89,675.85,0.29592365]
[1738062758302,0.27170575,676.88,675.85,0.29592365]
[1738062758509,0.27170575,676.93,675.85,0.29592365]
[1738062758807,0.27170575,676.92,675.85,0.29592365]
[1738062760207,1.54365939,676.91,675.85,0.29592365]
[1738062760403,0.27170575,676.9,675.85,0.29592365]
[1738062762106,1.54365939,676.91,675.85,0.29592365]
[1738062762107,0.27171788,676.89,675.85,0.29592365]
[1738062762302,1.54365939,676.91,675.85,0.29592365]
[1738062762303,0.27171788,676.9,675.85,0.29592365]
[1738062762508,0.27171788,676.89,675.85,0.29592365]
[1738062762708,0.27171788,676.88,675.85,0.29592365]
[1738062763009,0.27171788,676.87,675.85,0.29592365]
[1738062763208,0.27171788,676.9,675.85,0.29592365]
[1738062763409,0.27171788,676.89,675.85,0.29592365]
[1738062763609,0.27171788,676.9,675.85,0.29592365]
[1738062763809,0.27171788,676.89,675.85,0.29592365]
[1738062764011,0.27171788,676.9,675.51,1.10313573]
[1738062764205,0.27171788,676.89,675.51,1.10313573]
[1738062764511,0.27171788,676.88,675.52,1.54371075]
[1738062764703,0.27171788,676.87,675.52,1.54371075]
[1738062764907,0.27171788,676.86,675.52,1.54371075]
[1738062765105,0.27171788,676.9,675.52,1.54371075]
[1738062765307,0.27171788,676.89,675.52,1.54371075]
[1738062765507,0.27171788,676.9,675.52,1.54371075]
[1738062765705,0.27171788,676.89,675.52,1.54371075]
[1738062765907,0.27171788,676.9,675.52,1.54371075]
[1738062766105,0.27171788,676.89,675.52,1.54371075]
[1738062766305,0.27171788,676.9,675.52,1.54371075]
[1738062766509,0.27171788,676.89,675.52,1.54371075]
[1738062766706,0.27171788,676.88,675.52,1.54371075]
[1738062767012,0.27171788,676.87,675.57,1.10313573]
[1738062767213,0.27171788,676.9,675.57,1.10313573]
[1738062767413,0.27171788,676.89,675.57,1.10313573]
[1738062767613,0.27171788,676.88,675.57,1.10313573]
[1738062767808,0.27171788,676.87,675.57,1.10313573]
[1738062768008,0.27171788,676.9,675.57,1.10313573]
[1738062768207,0.27171788,676.89,675.57,1.10313573]
[1738062768405,0.27171788,676.9,675.57,1.10313573]
[1738062768614,1.54365939,676.91,675.57,1.10313573]
[1738062768914,0.27170656,676.9,675.57,1.10313573]
[1738062769510,0.27170656,676.9,675.52,1.54371075]
[1738062769511,0.27170656,676.9,675.61,1.10313573]
[1738062771911,1.54365939,676.91,675.62,1.10313573]
[1738062772114,0.27170078,676.9,675.62,1.10313573]
[1738062773618,1.54365939,676.91,675.62,1.10313573]
[1738062773814,0.27170468,676.9,675.62,1.10313573]
[1738062774820,0.27170468,676.9,675.63,1.10313573]
[1738062776925,1.54365939,676.91,675.63,1.10313573]
[1738062777226,0.27172778,676.9,675.63,1.10313573]
[1738062777727,0.27172778,676.9,675.59,1.10313573]
[1738062777925,1.10395001,676.88,675.59,1.10313573]
[1738062778119,0.27172778,676.87,675.59,1.10313573]
[1738062778525,1.10395001,676.88,675.59,1.10313573]
[1738062778725,0.27172876,676.87,675.59,1.10313573]
[1738062781227,1.37567877,676.87,675.57,1.10313573]
[1738062781426,0.27172876,676.86,675.57,1.10313573]
[1738062781727,1.10395001,676.87,675.57,1.10313573]
[1738062782227,0.27172493,676.85,675.57,1.10313573]
[1738062782426,0.27172493,676.84,675.57,1.10313573]
[1738062782627,0.27172493,676.86,675.57,1.10313573]
[1738062782827,1.54379064,676.83,675.57,1.10313573]
[1738062783028,0.27172493,676.82,675.57,1.10313573]
[1738062784225,0.27172493,676.82,675.6,1.10313573]
[1738062787234,0.27173872,676.81,675.6,1.10313573]
[1738062787532,0.27173872,676.8,675.6,1.10313573]
[1738062787733,0.27173872,676.82,675.6,1.10313573]
[1738062787933,0.27173872,676.81,675.6,1.10313573]
[1738062788232,0.27173872,676.8,675.6,1.10313573]
[1738062788533,0.27173872,676.79,675.64,1.10313573]
[1738062788735,0.27173872,676.78,675.64,1.10313573]
[1738062788928,0.27173872,676.81,675.64,1.10313573]
[1738062789127,0.27173872,676.8,675.64,1.10313573]
[1738062789326,0.27173872,676.81,675.64,1.10313573]
[1738062789529,0.27173872,676.8,675.64,1.10313573]
[1738062789726,0.27173872,676.79,675.64,1.10313573]
[1738062789928,0.27173872,676.78,675.64,1.10313573]
[1738062790130,0.27173872,676.77,675.64,1.10313573]
[1738062790333,0.27173872,676.81,675.64,1.10313573]
[1738062790634,0.27173872,676.8,675.64,1.10313573]
[1738062790932,0.27173872,676.79,675.64,1.10313573]
[1738062791234,1.10395001,676.76,675.62,1.10313573]
[1738062791434,0.27173872,676.75,675.62,1.10313573]
[1738062793133,1.54389338,676.74,675.62,1.10313573]
[1738062793333,0.27173872,676.73,675.62,1.10313573]
[1738062793735,1.54389338,676.74,675.62,1.10313573]
[1738062794035,0.27175132,676.73,675.62,1.10313573]
[1738062794729,0.27175132,676.73,675.56,1.10313573]
[1738062795535,0.2717449,676.72,675.56,1.10313573]
[1738062795731,0.2717449,676.73,675.56,1.10313573]
[1738062795936,0.2717449,676.72,675.56,1.10313573]
[1738062796135,0.2717449,676.71,675.56,1.10313573]
[1738062796335,0.2717449,676.7,675.56,1.10313573]
[1738062796532,0.2717449,676.73,675.56,1.10313573]
[1738062796738,0.2717449,676.72,675.56,1.10313573]
[1738062796933,0.2717449,676.73,675.56,1.10313573]
[1738062797133,0.2717449,676.72,675.56,1.10313573]
[1738062797332,0.2717449,676.71,675.56,1.10313573]
[1738062797532,0.2717449,676.73,675.58,1.10313573]
[1738062797737,0.2717449,676.72,675.58,1.10313573]
[1738062798036,0.2717449,676.71,675.58,1.10313573]
[1738062798236,1.54389338,676.74,675.58,1.10313573]
[1738062798237,0.2717449,676.7,675.58,1.10313573]
[1738062798429,0.2717449,676.69,675.58,1.10313573]
[1738062798634,1.54389338,676.74,675.58,1.10313573]
[1738062798831,0.27174527,676.73,675.58,1.10313573]
[1738062800531,0.27174574,676.72,675.58,1.10313573]
[1738062800734,0.27174574,676.73,675.58,1.10313573]
[1738062800935,0.27174574,676.72,675.58,1.10313573]
[1738062801134,1.54389338,676.74,675.58,1.10313573]
[1738062801337,0.27174589,676.73,675.58,1.10313573]
[1738062801938,1.54389338,676.74,675.58,1.10313573]
[1738062802239,0.27174497,676.73,675.58,1.10313573]
[1738062803235,0.27174497,676.73,675.61,1.10313573]
[1738062807142,0.27174497,676.73,675.57,1.10313573]
[1738062809541,0.27174497,676.73,675.59,1.10313573]
[1738062811941,1.54389338,676.74,675.59,1.10313573]
[1738062811942,0.27174523,676.72,675.59,1.10313573]
[1738062812142,0.27174523,676.73,675.59,1.10313573]
[1738062812339,0.27174523,676.72,675.59,1.10313573]
[1738062812644,0.27174523,676.71,675.59,1.10313573]
[1738062812842,0.27174523,676.7,675.59,1.10313573]
[1738062813041,0.27174523,676.69,675.64,1.10313573]
[1738062813240,0.27174523,676.68,675.64,1.10313573]
[1738062813548,0.27174523,676.67,675.64,1.10313573]
[1738062813846,0.27174523,676.66,675.64,1.10313573]
[1738062814046,0.27174523,676.65,675.64,1.10313573]
[1738062814347,0.27174523,676.64,675.64,1.10313573]
[1738062814548,0.27174523,676.7,675.64,1.10313573]
[1738062815347,0.27174881,676.69,675.64,1.10313573]
[1738062815548,1.10395001,676.62,675.71,1.10313573]
[1738062815747,0.27174881,676.61,675.71,1.10313573]
[1738062816746,1.10395001,676.62,675.71,1.10313573]
[1738062818848,1.54389338,676.74,675.46,1.54390479]
[1738062819043,0.29553884,676.73,675.38,1.10313573]
[1738062819251,1.83967198,676.73,675.38,1.10313573]
[1738062821346,1.83967198,676.73,675.34,1.54418453]
[1738062824055,1.83967198,676.73,675.34,1.52989235]
[1738062825956,1.83967198,676.73,675.05,1.10313573]
[1738062826156,1.83967198,676.73,675.25,1.5442759]
[1738062826355,1.83967198,676.73,675.25,0.29618659]
[1738062826656,1.83967198,676.73,675.25,1.84051389]
[1738062835769,0.27184864,676.72,675.25,1.84051389]
[1738062835969,0.29554757,676.71,675.25,1.84051389]
[1738062836166,0.27184864,676.7,675.25,1.84051389]
[1738062836367,0.29555631,676.69,675.25,1.84051389]
[1738062836570,0.27184864,676.68,675.25,1.84051389]
[1738062837067,0.29556504,676.67,675.25,1.84051389]
[1738062837266,0.27184864,676.66,675.25,1.84051389]
[1738062837469,0.29557378,676.65,675.25,1.84051389]
[1738062837665,0.27184864,676.64,675.25,1.84051389]
[1738062837866,0.56742679,676.64,675.25,1.84051389]
[1738062838066,0.27184864,676.63,675.25,1.84051389]
[1738062839767,0.27184067,676.62,675.25,1.84051389]
[1738062839967,0.27184067,676.61,675.25,1.84051389]
[1738062840166,0.27184067,676.63,675.25,1.84051389]
[1738062840370,0.27184067,676.62,675.25,1.84051389]
[1738062840565,0.27184067,676.61,675.25,1.84051389]
[1738062840770,0.29557815,676.64,675.25,1.84051389]
[1738062840969,0.27182884,676.63,675.25,1.84051389]
[1738062842273,0.29557815,676.64,675.25,1.84051389]
[1738062842766,0.29557815,676.64,675.26,0.29618221]
[1738062847275,0.29557815,676.64,675.35,1.10313573]
[1738062847477,0.29557815,676.64,675.36,0.29613835]
[1738062850076,0.29557815,676.64,675.36,1.39927408]
[1738062852283,0.27177841,676.63,675.36,1.39927408]
[1738062853785,0.27176861,676.62,675.36,1.39927408]
[1738062853986,0.27176861,676.63,675.36,1.39927408]
[1738062854282,0.27176861,676.62,675.36,1.39927408]
[1738062854481,0.27176861,676.61,675.36,1.39927408]
[1738062854787,0.27176861,676.6,675.36,1.39927408]
[1738062854981,0.27176861,676.59,675.36,1.39927408]
[1738062855181,0.27176861,676.58,675.36,1.39927408]
[1738062855385,0.27176861,676.63,675.36,1.39927408]
[1738062855583,0.27176861,676.62,675.36,1.39927408]
[1738062855781,0.27176861,676.63,675.36,1.39927408]
[1738062856090,0.27176861,676.62,675.36,1.39927408]
[1738062856288,0.27176861,676.61,675.36,1.39927408]
[1738062856488,0.27176861,676.63,675.36,1.39927408]
[1738062856689,0.29557815,676.64,675.56,1.10313573]
[1738062856690,0.27176861,676.62,675.56,1.10313573]
[1738062856888,0.27176861,676.63,675.56,1.10313573]
[1738062857087,0.27176861,676.62,675.56,1.10313573]
[1738062857294,0.27176861,676.61,675.56,1.10313573]
[1738062857589,0.27176861,676.6,675.56,1.10313573]
[1738062857889,0.27176861,676.59,675.56,1.10313573]
[1738062858083,0.27176861,676.63,675.56,1.10313573]
[1738062858285,0.27176861,676.62,675.56,1.10313573]
[1738062858488,0.27176861,676.61,675.56,1.10313573]
[1738062858683,0.29557815,676.64,675.56,1.10313573]
[1738062858684,0.27176861,676.63,675.56,1.10313573]
[1738062858987,0.27176861,676.62,675.56,1.10313573]
[1738062859188,0.27176861,676.61,675.56,1.10313573]
[1738062859386,0.27176861,676.6,675.56,1.10313573]
[1738062859588,0.27176861,676.63,675.56,1.10313573]
[1738062859785,0.27176861,676.62,675.56,1.10313573]
[1738062859988,0.27176861,676.63,675.56,1.10313573]
[1738062860285,0.29557815,676.64,675.54,1.10313573]
[1738062860286,0.27176861,676.62,675.54,1.10313573]
[1738062860483,0.27176861,676.63,675.54,1.10313573]
[1738062860684,0.27176861,676.62,675.54,1.10313573]
[1738062860885,0.27176861,676.61,675.54,1.10313573]
[1738062861083,0.27176861,676.63,675.54,1.10313573]
[1738062861287,0.27176861,676.62,675.54,1.10313573]
[1738062861484,0.27176861,676.61,675.54,1.10313573]
[1738062861687,0.27176861,676.63,675.54,1.10313573]
[1738062861888,0.27176861,676.62,675.54,1.10313573]
[1738062862091,0.27176861,676.63,675.54,1.10313573]
[1738062862286,0.27176861,676.62,675.54,1.10313573]
[1738062862591,0.27176861,676.61,675.54,1.10313573]
[1738062862787,0.29557815,676.64,675.54,1.10313573]
[1738062862788,0.27176861,676.6,675.54,1.10313573]
[1738062862988,0.27176861,676.59,675.54,1.10313573]
[1738062863188,0.27176861,676.58,675.54,1.10313573]
[1738062863384,0.27176861,676.63,675.54,1.10313573]
[1738062863584,0.29557815,676.64,675.54,1.10313573]
[1738062863789,0.27176596,676.63,675.54,1.10313573]
[1738062865287,0.29557815,676.64,675.54,1.10313573]
[1738062865491,0.27177264,676.63,675.54,1.10313573]
[1738062866991,0.27177048,676.62,675.54,1.10313573]
[1738062867293,0.27177048,676.61,675.54,1.10313573]
[1738062867494,0.27177048,676.63,675.54,1.10313573]
[1738062867791,0.27177048,676.62,675.54,1.10313573]
[1738062867991,0.27177048,676.62,675.36,2.94327021]
[1738062867992,0.27177048,676.63,675.46,1.10313573]
[1738062868189,0.27177048,676.62,675.46,1.10313573]
[1738062868489,0.27177048,676.61,675.46,1.10313573]
[1738062868792,0.27177048,676.6,675.46,1.10313573]
[1738062868994,0.29557815,676.64,675.46,1.10313573]
[1738062868995,0.27177048,676.63,675.46,1.10313573]
[1738062869288,0.27177048,676.62,675.46,1.10313573]
[1738062869491,0.29557815,676.64,675.46,1.10313573]
[1738062870794,0.29557815,676.64,675.49,1.10313573]
[1738062872193,0.27176417,676.63,675.49,1.10313573]
[1738062873494,0.27176417,676.63,675.46,1.10313573]
[1738062876096,0.27176417,676.63,675.54,1.10313573]
[1738062876489,0.29557815,676.64,675.54,1.10313573]
[1738062878997,0.29557815,676.64,675.51,1.10313573]
[1738062886392,0.2717773,676.63,675.51,1.10313573]
[1738062887000,0.2717773,676.63,675.52,1.10313573]
[1738062888701,0.29557815,676.64,675.52,1.10313573]
[1738062888897,0.27177683,676.63,675.52,1.10313573]
[1738062889699,0.29557815,676.64,675.52,1.10313573]
[1738062889899,0.27178547,676.63,675.52,1.10313573]
[1738062890298,0.27178547,676.63,675.41,0.29611643]
[1738062890299,1.10395001,676.56,675.67,1.10313573]
[1738062890698,0.27178457,676.55,675.67,1.10313573]
[1738062893101,0.27178457,676.55,675.42,0.7052774]
[1738062893102,0.27178457,676.55,675.61,1.10313573]
[1738062893302,0.27178457,676.57,675.61,1.10313573]
[1738062893503,0.27178457,676.56,675.61,1.10313573]
[1738062893701,0.27178457,676.55,675.61,1.10313573]
[1738062894103,0.27178457,676.54,675.61,1.10313573]
[1738062894304,1.10395001,676.58,675.61,1.10313573]
[1738062894506,0.2717904,676.57,675.61,1.10313573]
[1738062896204,1.37574041,676.57,675.61,1.10313573]
[1738062896404,0.2717904,676.56,675.61,1.10313573]
[1738062897307,0.27181331,676.55,675.61,1.10313573]
[1738062897602,0.27181331,676.54,675.61,1.10313573]
[1738062897808,0.27181331,676.53,675.61,1.10313573]
[1738062898107,1.10395001,676.57,675.61,1.10313573]
[1738062898307,0.27181542,676.56,675.61,1.10313573]
[1738062899508,0.27181542,676.56,675.49,1.10313573]
[1738062899708,0.27181542,676.58,675.49,1.10313573]
[1738062899909,0.27181542,676.57,675.49,1.10313573]
[1738062900209,0.27181542,676.56,675.49,1.10313573]
[1738062900405,0.27181542,676.55,675.49,1.10313573]
[1738062900611,0.27181542,676.58,675.49,1.10313573]
[1738062900810,0.27181542,676.57,675.49,1.10313573]
[1738062901010,0.27181542,676.58,675.49,1.10313573]
[1738062901311,0.27181542,676.57,675.49,1.10313573]
[1738062901511,0.27181542,676.56,675.49,1.10313573]
[1738062901706,0.27181542,676.55,675.49,1.10313573]
[1738062901911,0.27181542,676.58,675.49,1.10313573]
[1738062902107,0.27181542,676.57,675.49,1.10313573]
[1738062902307,0.27181542,676.56,675.49,1.10313573]
[1738062902607,0.27181542,676.55,675.49,1.10313573]
[1738062902813,0.27181542,676.54,675.45,1.10313573]
[1738062903013,0.27181542,676.59,675.45,1.10313573]
[1738062903214,1.10395001,676.6,675.45,1.10313573]
[1738062903512,0.27181878,676.59,675.45,1.10313573]
[1738062904813,1.10395001,676.6,675.45,1.10313573]
[1738062905707,1.39952816,676.64,675.46,1.10313573]
[1738062908111,1.10395001,676.64,675.46,1.10313573]
[1738062909616,0.2717303,676.63,675.46,1.10313573]
[1738062909917,0.2717303,676.63,675.68,1.10313573]
[1738062910114,0.2717303,676.81,675.68,1.10313573]
[1738062910317,0.2717303,676.8,675.68,1.10313573]
[1738062910616,1.10395001,676.82,675.68,1.10313573]
[1738062910617,0.27173419,676.79,675.68,1.10313573]
[1738062910816,0.27173419,676.78,675.68,1.10313573]
[1738062911014,0.27173419,676.81,675.68,1.10313573]
[1738062911218,0.27173419,676.8,675.68,1.10313573]
[1738062911418,0.27173419,676.79,675.68,1.10313573]
[1738062911712,0.27173419,676.78,675.68,1.10313573]
[1738062911917,0.27173419,676.77,675.68,1.10313573]
[1738062912117,0.27173419,676.81,675.68,1.10313573]
[1738062912316,0.27173419,676.8,675.68,1.10313573]
[1738062912513,0.27173419,676.8,675.47,0.29609012]
[1738062912514,0.27173419,676.79,675.61,1.10313573]
[1738062912715,0.27173419,676.8,675.61,1.10313573]
[1738062915318,0.27173419,676.83,675.61,1.10313573]
[1738062915519,0.27172416,676.82,675.61,1.10313573]
[1738062915717,0.27172416,676.81,675.61,1.10313573]
[1738062915921,0.27172416,676.83,675.61,1.10313573]
[1738062916122,0.27172416,676.82,675.61,1.10313573]
[1738062916322,0.27172416,676.81,675.61,1.10313573]
[1738062916524,0.27172416,676.83,675.61,1.10313573]
[1738062916726,0.27172416,676.82,675.61,1.10313573]
[1738062916925,0.27172416,676.83,675.61,1.10313573]
[1738062917123,1.10395001,676.84,675.61,1.10313573]
[1738062917124,0.27172416,676.82,675.61,1.10313573]
[1738062917322,0.27172416,676.81,675.61,1.10313573]
[1738062917519,0.27172416,676.83,675.61,1.10313573]
[1738062917723,0.27172416,676.82,675.61,1.10313573]
[1738062917921,0.27172416,676.81,675.61,1.10313573]
[1738062918125,0.27172416,676.83,675.61,1.10313573]
[1738062918327,0.27172416,676.82,675.61,1.10313573]
[1738062918524,0.27172416,676.83,675.61,1.10313573]
[1738062918725,0.27172416,676.82,675.61,1.10313573]
[1738062918922,0.27172416,676.83,675.61,1.10313573]
[1738062919119,0.27172416,676.83,675.47,0.29609012]
[1738062919120,0.27172416,676.82,675.62,1.10313573]
[1738062919321,0.27172416,676.81,675.62,1.10313573]
[1738062919522,0.27172416,676.84,675.62,1.10313573]
[1738062919728,0.27172416,676.83,675.62,1.10313573]
[1738062920027,0.27172416,676.82,675.62,1.10313573]
[1738062920229,0.27172416,676.81,675.62,1.10313573]
[1738062920429,0.27172416,676.84,675.62,1.10313573]
[1738062920625,0.27172416,676.83,675.62,1.10313573]
[1738062920825,0.27172416,676.84,675.62,1.10313573]
[1738062921026,0.27172416,676.83,675.62,1.10313573]
[1738062921225,0.27170097,676.82,675.62,1.10313573]
[1738062921531,0.27170097,676.81,675.65,1.10313573]
[1738062921830,0.27170097,676.8,675.65,1.10313573]
[1738062922026,0.27170097,676.86,675.65,1.10313573]
[1738062922224,0.27170097,676.85,675.65,1.10313573]
[1738062922423,0.27170097,676.84,675.65,1.10313573]
[1738062922627,0.27170097,676.83,675.65,1.10313573]
[1738062922824,0.27170097,676.86,675.65,1.10313573]
[1738062923028,0.27170097,676.85,675.65,1.10313573]
[1738062923326,0.27170097,676.84,675.65,1.10313573]
[1738062923528,0.27170097,676.86,675.65,1.10313573]
[1738062923723,1.5436708,676.87,675.65,1.10313573]
[1738062923929,0.27171555,676.86,675.65,1.10313573]
[1738062924930,0.27171555,676.86,675.58,1.10313573]
[1738062925130,0.27171555,676.86,675.59,0.29603753]
[1738062927026,1.5436708,676.87,675.59,0.29603753]
[1738062927229,0.2717132,676.86,675.59,0.29603753]
[1738062927631,1.5436708,676.87,675.59,0.29603753]
[1738062937544,0.27170136,676.86,675.59,0.29603753]
[1738062938842,1.5436708,676.87,675.59,0.29603753]
[1738062939044,0.27170081,676.86,675.59,0.29603753]
[1738062940445,1.5436708,676.87,675.59,0.29603753]
[1738062940642,0.27170343,676.86,675.59,0.29603753]
[1738062941650,0.27170343,676.86,675.66,1.10313573]
[1738062945250,1.10395001,676.82,675.62,1.10313573]
[1738062945451,0.27170343,676.81,675.62,1.10313573]
[1738062946050,1.54376781,676.8,675.62,1.10313573]
[1738062946250,0.27170343,676.79,675.62,1.10313573]
[1738062948348,0.27170343,676.79,675.61,1.10313573]
[1738062951650,1.37565344,676.79,675.61,1.10313573]
[1738062951853,0.27170343,676.78,675.61,1.10313573]
[1738062954557,0.27170343,676.78,675.73,1.10313573]
[1738062954558,1.10395001,676.67,675.73,1.10313573]
[1738062954757,0.27170343,676.66,675.73,1.10313573]
[1738062956458,0.27174475,676.65,675.73,1.10313573]
[1738062956659,0.27174475,676.64,675.73,1.10313573]
[1738062956859,0.27174475,676.66,675.73,1.10313573]
[1738062957059,0.27174475,676.65,675.73,1.10313573]
[1738062957260,1.54376781,676.8,675.59,0.29603753]
[1738062957261,1.10395001,676.73,675.64,1.10313573]
[1738062957459,0.27174665,676.72,675.64,1.10313573]
[1738062958562,1.10395001,676.73,675.64,1.10313573]
[1738062958860,1.5439105,676.71,675.64,1.10313573]
[1738062960760,1.5439105,676.71,675.59,0.29603753]
[1738062962460,0.2717866,676.7,675.59,0.29603753]
[1738062964663,1.5439105,676.71,675.59,0.29603753]
[1738062964863,0.27178667,676.7,675.59,0.29603753]
[1738062965260,1.5439105,676.71,675.59,0.29603753]
[1738062968270,0.27177785,676.7,675.59,0.29603753]
[1738062974877,0.27176425,676.69,675.59,0.29603753]
[1738062975069,0.27176425,676.7,675.59,0.29603753]
[1738062975471,1.5439105,676.71,675.59,0.29603753]
[1738062981583,0.27175473,676.7,675.59,0.29603753]
[1738062981882,1.5439105,676.71,675.59,0.29603753]
[1738062982283,0.27175072,676.7,675.59,0.29603753]
[1738062983280,1.5439105,676.71,675.59,0.29603753]
[1738062983478,0.27175465,676.7,675.59,0.29603753]
[1738062983886,1.5439105,676.71,675.59,0.29603753]
[1738062993790,1.10395001,676.86,675.59,0.29603753]
[1738062993991,0.56723666,676.85,675.59,0.29603753]
[1738062994186,0.56724103,676.84,675.59,0.29603753]
[1738062994393,0.27175022,676.83,675.59,0.29603753]
[1738062996493,0.29549081,676.84,675.59,0.29603753]
[1738062996690,0.27174973,676.83,675.59,0.29603753]
[1738062997092,1.81564881,676.82,675.59,0.29603753]
[1738062997291,1.10395001,676.79,675.59,0.29603753]
[1738062997497,0.27174973,676.78,675.59,0.29603753]
[1738062999398,1.10395001,676.69,675.64,1.10313573]
[1738062999599,0.27174973,676.68,675.64,1.10313573]
[1738063002502,0.27174973,676.68,675.59,0.29603753]
[1738063002503,0.27174973,676.68,675.7,1.10313573]
[1738063002697,1.10395001,676.65,675.7,1.10313573]
[1738063005198,1.10395001,676.71,675.63,1.10313573]
[1738063005401,0.27175269,676.7,675.63,1.10313573]
[1738063007703,1.10395001,676.71,675.63,1.10313573]
[1738063008102,1.10395001,676.68,675.64,1.10313573]
[1738063009201,0.27176512,676.67,675.64,1.10313573]
[1738063011404,0.27176512,676.67,675.59,1.39917326]
[1738063011405,1.10395001,676.65,675.59,1.39917326]